Cogmind - Beta 15 @@@ ROGUE MODE // 2025.07.19 @ 21:12:33 Player: beans Result: Destroyed by B-48 Gladiator with Mace Performance ------------- Evolutions (3) 1500 Regions Visited (6) 1200 Robots Destroyed (42) 210 Value Destroyed (1336) 1336 Prototype IDs (23) 460 Alien Tech Used (0) 0 Bonus (374) 374 TOTAL SCORE: 5080 Bonus ------- Follower Combat Kills 74 Aligned with FarCom 300 Cogmind --------- Core Integrity 0/700 Matter 167/300 Energy 55/100 System Corruption 12% Temperature Cool (9) Movement Core (200) Ox3 Location -7/Factory Parts ------- > --- POWER (2) -------- (None) > --- PROPULSION (4) --- (None) > --- UTILITY (4) ------ Improved Weapon Shielding Reactive Plating > --- WEAPON (3) ------- (None) > --- INVENTORY (5) ---- Light Treads High-capacity Battery (250) High-capacity Battery (250) Medium Laser Peak State ------------ > --- POWER ------------ Light Nuclear Core Light Nuclear Core > --- PROPULSION ------- Light Treads Light Treads > --- UTILITY ---------- Large Storage Unit Cloak of Protection > --- WEAPON ----------- EM Pulse Cannon Grenade Launcher > --- INVENTORY -------- Nuclear Core Nuclear Core High-capacity Battery High-capacity Battery High-capacity Matter Pod Improved Weapon Shielding Reactive Plating Medium Laser Assault Rifle Light Cannon Rocket Launcher Rocket Launcher [Rating: 23] Favorites ----------- Power Light Ion Engine Engine Light Ion Engine Power Core Nuclear Core Propulsion Light Treads Treads Light Treads Utility Large Storage Unit Device Cloak of Protection Storage Large Storage Unit Processor Targeting Computer Protection Improved Weapon Shielding Weapon Grenade Launcher Energy Gun Gatling Laser Energy Cannon EM Pulse Cannon Ballistic Gun Assault Rifle Ballistic Cannon Light Cannon Launcher Grenade Launcher Build | -11 -10 -10 -10 -9 -8 -7 ------- Run | Yrd Mat Min Exi Min Mat Fac Slots Evolved 6 | . . . . . 4 2 Power 1 | . . . . . 1 . Propulsion 2 | . . . . . 2 . Utility 2 | . . . . . . 2 Weapon 1 | . . . . . 1 . Parts Attached 28 | 4 2 1 1 1 11 8 Power 5 | 1 . . . 1 3 . Engine 1 | 1 . . . . . . Core 4 | . . . . 1 3 . Reactor . | . . . . . . . Propulsion 3 | 2 . . . . 1 . Treads 3 | 2 . . . . 1 . Leg . | . . . . . . . Wheel . | . . . . . . . Hover . | . . . . . . . Flight . | . . . . . . . Utility 10 | . 1 . 1 . 3 5 Device 2 | . . . 1 . 1 . Storage 3 | . 1 . . . 1 1 Processor 3 | . . . . . 1 2 Hackware . | . . . . . . . Protection 2 | . . . . . . 2 Artifact . | . . . . . . . Weapon 10 | 1 1 1 . . 4 3 Energy Gun 1 | . . . . . . 1 Energy Cannon 3 | . . 1 . . 2 . Ballistic Gun 1 | 1 . . . . . . Ballistic Cannon 1 | . . . . . 1 . Launcher 4 | . 1 . . . 1 2 Special Weapon . | . . . . . . . Impact Weapon . | . . . . . . . Slashing Weapon . | . . . . . . . Piercing Weapon . | . . . . . . . Special Melee Weapon . | . . . . . . . Unidentified Prototypes . | . . . . . . . Parts Lost 19 | . . . . . 10 9 Power 2 | . . . . . 2 . Propulsion 3 | . . . . . 3 . Utility 4 | . . . . . 1 3 Weapon 10 | . . . . . 4 6 Highest Loss Streak 6 | . . . . . 5 6 To Critical Strikes . | . . . . . . . Average Backups 7 | . . 5 6 8 12 9 Power . | . . . . . . . Propulsion . | . . . . . . . Utility 4 | . . 2 3 5 7 5 Weapon 3 | . . 2 3 3 5 3 Tool/Special . | . . . . . . . Unused Backups 2 | . . . . . . 2 Power . | . . . . . . . Propulsion . | . . . . . . . Utility 1 | . . . . . . 1 Weapon 1 | . . . . . . 1 Tool/Special . | . . . . . . . Average Slot Usage (%) 77 | . 71 85 93 100 66 36 Engine 5 | . 14 14 14 . . . Core 6 | . . . . 13 13 . Treads 21 | . 28 28 28 28 16 . Device 6 | . . . 7 14 6 . Storage 11 | . . 14 14 14 9 13 Processor 2 | . . . . . 1 14 Energy Cannon 9 | . . 10 14 14 9 5 Ballistic Gun 1 | . 14 3 . . . . Launcher 10 | . 13 14 14 14 8 . Peak Build Rating 23 | 4 6 9 17 19 23 12 Average Rating 13 | 2 4 8 13 18 18 8 On Entrance 8 | . 4 6 9 17 19 7 Naked Turns 1 | . . . . . . 1 Heaviest Build 51 | 5 28 32 40 42 51 33 Greatest Support 60 | 40 40 40 40 40 60 3 Greatest Overweight (x) 10 | . . . . 1 9 10 Average Overweight (x) . | . . . . . 1 8 Largest Inventory Capacity 15 | 5 15 15 15 15 15 15 Average Capacity 13 | 5 5 15 15 15 15 14 Most Carried 14 | 2 2 6 8 11 14 11 Average Carried 7 | . . 5 6 8 12 8 Final Capacity 15 | 5 15 15 15 15 15 5 Final Carried 12 | . 1 6 8 11 12 4 Class Distribution -------------------- 95% | Mutant 4% | Skirmisher Dominant Class ---------------- Mutant | -10/Materials Mutant | -10/Mines Mutant | -10/Exiles Mutant | -9/Mines Mutant | -8/Materials Mutant | -7/Factory Resources | -11 -10 -10 -10 -9 -8 -7 ----------- Run | Yrd Mat Min Exi Min Mat Fac Matter Collected 811 | 195 97 47 . 344 128 . Remotely . | . . . . . . . Salvage Created 1232 | 19 132 12 . 336 663 70 Parts 72 | 1 12 . . 19 34 6 Haulers Intercepted 1 | . . . . . 1 . Recyclers Shooed 1 | . . . . . 1 . Parts Field Recycled . | . . . . . . . Retrieved Matter . | . . . . . . . Parts Self-Destructed . | . . . . . . . Prevented . | . . . . . . . Kills | -11 -10 -10 -10 -9 -8 -7 ------- Run | Yrd Mat Min Exi Min Mat Fac Combat Hostiles Destroyed 25 | . 4 1 . 5 14 1 Guns 1 | . . . . . . 1 Cannons 12 | . . 1 . 5 6 . AOE 12 | . 4 . . . 8 . Classes Destroyed 12 | 1 3 1 . 3 4 . Worker 4 | 1 . . . . 3 . Builder 4 | . 2 . . . 2 . Tunneler 4 | . . . . 2 1 1 Hauler 1 | . . . . . 1 . Recycler 1 | . . . . 1 . . Watcher 4 | . 2 . . . 1 1 Swarmer 1 | . . . . 1 . . Grunt 17 | . 4 . . 4 9 . Brawler 1 | . . . . . 1 . Sentry 4 | . . . . . 3 1 Hunter 1 | . . . . . 1 . Assembled 1 | . . 1 . . . . Best Kill Streak 5 | 1 5 1 . 3 5 2 Combat Bots Only 4 | . 4 1 . 3 4 1 Max Kills in Single Turn 3 | 1 2 1 . 1 3 1 Gunslinging . | . . . . . . . Exploded 2 | . 1 . . . 2 . Melee . | . . . . . . . Uniques/NPCs Destroyed . | . . . . . . . Combat | -11 -10 -10 -10 -9 -8 -7 -------- Run | Yrd Mat Min Exi Min Mat Fac Hostile Shots Fired 250 | . 10 1 . 24 85 130 Missed 77 | . 5 . . 2 24 46 Hits 173 | . 5 1 . 22 61 84 Melee 21 | . . . . . . 21 Projectile 152 | . 5 1 . 22 61 63 Critical Strikes 8 | . . . . . 2 6 Damage Taken 2960 | . 125 13 . 316 1139 1367 Core 946 | . 28 . . 36 176 706 Absorbed by Shields . | . . . . . . . Ignored by Resistances 3 | . . . . . . 3 Core Remaining (%) 80 | 100 . . . 74 68 . Volleys Fired 146 | 1 10 4 . 20 81 30 Largest 3 | 1 2 1 . 2 3 2 Hottest 165 | 20 50 63 . 93 165 80 Shots Fired 179 | 1 20 4 . 23 99 32 Gun 23 | 1 10 . . . . 12 Cannon 113 | . . 2 . 20 74 17 Launcher 43 | . 10 2 . 3 25 3 Special . | . . . . . . . Kinetic 21 | 1 10 . . . 3 7 Thermal 80 | . . . . . 58 22 Explosive 42 | . 10 2 . 3 25 2 Electromagnetic 36 | . . 2 . 20 13 1 Robot Hit Streak 32 | 1 3 2 . 8 8 32 Robot Miss Streak 3 | . 2 . . 1 3 2 Penetration Max . | . . . . . . . Secondary Targets . | . . . . . . . Shots Hit Robots 105 | 1 8 2 . 15 54 25 Core Hits 84 | 1 16 3 . 12 41 11 Critical Kills . | . . . . . . . Critical Parts Destroyed . | . . . . . . . Critical Strikes . | . . . . . . . Melee Attacks . | . . . . . . . Impact . | . . . . . . . Slashing . | . . . . . . . Piercing . | . . . . . . . Sneak Attacks . | . . . . . . . Combat Hostiles . | . . . . . . . Follow-up Attacks . | . . . . . . . Damage Inflicted 3782 | 14 526 84 . 515 1917 726 Guns 301 | 14 34 . . . . 253 Cannons 1662 | . . 42 . 379 1000 241 Explosions 1819 | . 492 42 . 136 917 232 Melee . | . . . . . . . Ramming . | . . . . . . . Kinetic 171 | 14 34 . . . 35 88 Thermal 1128 | . . . . 21 701 406 Explosive 1699 | . 492 42 . 115 917 133 Electromagnetic 784 | . . 42 . 379 264 99 Impact . | . . . . . . . Slashing . | . . . . . . . Piercing . | . . . . . . . Highest Corruption 12 | . . . . . . 12 Average Corruption 10 | . . . . . . 10 Corruption Purged . | . . . . . . . Corruption Blocked . | . . . . . . . Effects 2 | . . . . . . 2 Message Errors 1 | . . . . . . 1 Data Loss (minor) 1 | . . . . . . 1 Overload Shots . | . . . . . . . Overflow Damage 65 | . 1 . . . 41 23 Projectiles 22 | . . . . . . 22 Explosions 43 | . 1 . . . 41 1 Melee . | . . . . . . . Knockbacks . | . . . . . . . Impact . | . . . . . . . Kinetic . | . . . . . . . Secondary . | . . . . . . . Self-Inflicted Damage 346 | . 56 . . 66 208 16 Shots 16 | . 3 . . 2 10 1 Rammed . | . . . . . . . Targets Rammed . | . . . . . . . Kicked . | . . . . . . . Crushed . | . . . . . . . Highest Temperature 335 | . 7 22 . 142 335 96 Average Temperature 83 | . 3 12 . 60 101 31 Received Heat Transfer 684 | . 42 . . 120 297 225 Effects 1 | . . . . . 1 . Interference 1 | . . . . . 1 . Siege Activations . | . . . . . . . Martial Activations . | . . . . . . . Shielding Activations . | . . . . . . . Robots Disrupted . | . . . . . . . Combat Hostiles . | . . . . . . . Robots Corrupted . | . . . . . . . Combat Hostiles . | . . . . . . . Parts Fried 2 | . . . . . 2 . Impact Corruptions . | . . . . . . . Robots Melted . | . . . . . . . Combat Hostiles . | . . . . . . . Parts Melted . | . . . . . . . Heat Transferred 1905 | . . . . 50 1110 745 Parts Sabotaged . | . . . . . . . Parts Stolen . | . . . . . . . Parts Stripped . | . . . . . . . Power Chain Reactions . | . . . . . . . Alert | -11 -10 -10 -10 -9 -8 -7 ------- Run | Yrd Mat Min Exi Min Mat Fac Maximum Alert Level 1 | . . . . . 1 . Low Security (%) 98 | 100 100 100 . 100 95 100 Level 1 1 | . . . . . 4 . Level 2 . | . . . . . . . Level 3 . | . . . . . . . Level 4 . | . . . . . . . Level 5 . | . . . . . . . High Security . | . . . . . . . Max Security . | . . . . . . . Peak Influence 221 | 5 120 36 . 103 221 150 Initial 94 | . 3 36 . . . 94 Average 38 | . 38 3 . 30 54 67 Influence Increases 1269 | 5 179 1 . 309 571 204 Destroy 0b10 Robot/C 560 | . 80 . . 180 280 20 Destroy 0b10 Robot/NC 90 | 5 20 . . 15 40 10 Destroy Leader 140 | . 24 . . 30 74 12 Allied During Kill 23 | . . . . 17 6 . Disable Machine 105 | . . . . 30 75 . Anti-Garrison Action 150 | . . . . . . 150 Destroy Structure 186 | . 55 1 . 22 96 12 Lose Combat Pursuer 15 | . . . . 15 . . Influence Decreases 1259 | . 91 94 . 309 362 403 Entered New Map 174 | . 2 57 . . . 115 Time Decay 855 | . 89 37 . 269 262 198 Lost Part 190 | . . . . . 100 90 Lost Ally 40 | . . . . 40 . . Squads Dispatched 6 | . . 1 . . 2 3 Investigation 1 | . . 1 . . . . Extermination . | . . . . . . . Reinforcement 3 | . . . . . 2 1 Assault 2 | . . . . . . 2 Garrison . | . . . . . . . Intercept . | . . . . . . . Searches Triggered . | . . . . . . . Construction Impeded 3 | . . . . . 2 1 Haulers Reinforced . | . . . . . . . Active Scanning Responses . | . . . . . . . Cargo Convoy Interrupts . | . . . . . . . Stealth | -11 -10 -10 -10 -9 -8 -7 --------- Run | Yrd Mat Min Exi Min Mat Fac Distress Signals 3 | . . . . . 2 1 Communications Jammed . | . . . . . . . Distress Signals . | . . . . . . . Times Spotted 49 | . 7 6 . 8 18 10 Peak Tracking Total 9 | . 2 9 . 3 3 5 Tactical Retreats 1 | . . . . 1 . . Traps | -11 -10 -10 -10 -9 -8 -7 ------- Run | Yrd Mat Min Exi Min Mat Fac Traps Triggered . | . . . . . . . Indirectly . | . . . . . . . Trap Hack Attempts . | . . . . . . . Triggered . | . . . . . . . Disarmed . | . . . . . . . Reprogrammed . | . . . . . . . Reused . | . . . . . . . Traps Extracted . | . . . . . . . Installed . | . . . . . . . Triggered . | . . . . . . . Machines | -11 -10 -10 -10 -9 -8 -7 ---------- Run | Yrd Mat Min Exi Min Mat Fac Machines Disabled 8 | . . . . 2 5 1 Max in Single Turn 1 | . . . . 1 1 1 Garrison Access 1 | . . . . . . 1 Machines Repaired . | . . . . . . . Machines Dismantled . | . . . . . . . Machines Sabotaged . | . . . . . . . Overloaded Fab Kills . | . . . . . . . Hacking | -11 -10 -10 -10 -9 -8 -7 --------- Run | Yrd Mat Min Exi Min Mat Fac Machines Accessed 3 | . . 1 2 . . . Terminals . | . . . . . . . Fabricators . | . . . . . . . Repair Stations . | . . . . . . . Recycling Units . | . . . . . . . Scanalyzers . | . . . . . . . Garrison Access . | . . . . . . . Total Hacks 25 | . . 1 24 . . . Successful 25 | . . 1 24 . . . Failed . | . . . . . . . Catastrophic . | . . . . . . . Database Lockouts . | . . . . . . . Manual 1 | . . . 1 . . . Terminals . | . . . . . . . Fabricators . | . . . . . . . Repair Stations . | . . . . . . . Recycling Units . | . . . . . . . Scanalyzers . | . . . . . . . Garrison Access . | . . . . . . . Terminal Hacks 25 | . . 1 24 . . . Record 23 | . . . 23 . . . Open Door 1 | . . 1 . . . . Proto ID Catalog 1 | . . . 1 . . . Fabricator Hacks . | . . . . . . . Repair Station Hacks . | . . . . . . . Recycling Unit Hacks . | . . . . . . . Scanalyzer . | . . . . . . . Garrison Access Hacks . | . . . . . . . Unauthorized Hacks . | . . . . . . . Terminals . | . . . . . . . Fabricators . | . . . . . . . Repair Stations . | . . . . . . . Recycling Units . | . . . . . . . Scanalyzers . | . . . . . . . Garrison Access . | . . . . . . . Data Cores Recovered . | . . . . . . . Used . | . . . . . . . Hacking Detections . | . . . . . . . Full Trace Events . | . . . . . . . Feedback Events . | . . . . . . . Feedback Blocked . | . . . . . . . Robot Schematics Acquired . | . . . . . . . Robots Built . | . . . . . . . Authchips . | . . . . . . . Time . | . . . . . . . Total Robot Build Rating . | . . . . . . . Part Schematics Acquired . | . . . . . . . Parts Built . | . . . . . . . Authchips . | . . . . . . . Time . | . . . . . . . Total Part Build Rating . | . . . . . . . Parts Repaired . | . . . . . . . Time . | . . . . . . . Parts Recycled . | . . . . . . . Recycled Matter . | . . . . . . . Retrieved Matter . | . . . . . . . Retrieved Components . | . . . . . . . Parts Scanalyzed . | . . . . . . . Part Schematics Acquired . | . . . . . . . Parts Damaged . | . . . . . . . Bothacking | -11 -10 -10 -10 -9 -8 -7 ------------ Run | Yrd Mat Min Exi Min Mat Fac Used RIF Installer . | . . . . . . . Robots Hacked . | . . . . . . . Non-combat . | . . . . . . . Combat . | . . . . . . . Robot Hacks Applied . | . . . . . . . Relay Couplers Released 3 | . . . . . . 3 Machine Destruction 3 | . . . . . . 3 Fabnet Peak Effective % . | . . . . . . . Robots Rewired . | . . . . . . . Allies Hacked . | . . . . . . . Hacks Repelled . | . . . . . . . Allies | -11 -10 -10 -10 -9 -8 -7 -------- Run | Yrd Mat Min Exi Min Mat Fac Total Allies 3 | . . . . 3 . . Largest Group 3 | . . . . 3 1 . Highest-Rated Group 40 | . . . . 40 16 . Highest-Rated Ally 16 | . . . . 16 16 . Total Orders 1 | . . . . . 1 . STAY 1 | . . . . . 1 . Ally Attacks 22 | . . . . 22 . . Total Damage 245 | . . . . 245 . . Kills 4 | . . . . 4 . . Allies Corrupted . | . . . . . . . Allies Melted . | . . . . . . . Intel | -11 -10 -10 -10 -9 -8 -7 ------- Run | Yrd Mat Min Exi Min Mat Fac Active Infowar (turns) 408 | . . . 20 70 318 . Cloaking 408 | . . . 20 70 318 . Robot Analysis Total . | . . . . . . . Derelict Logs Recovered 1 | . . . . 1 . . Drone Launches . | . . . . . . . Drone Recoveries . | . . . . . . . Exploration | -11 -10 -10 -10 -9 -8 -7 ------------- Run | Yrd Mat Min Exi Min Mat Fac Turns Passed 3575 | 102 318 426 571 878 823 457 Spaces Moved 1519 | 69 176 255 345 338 257 79 Core 106 | 16 . . . . 11 79 Treads 1413 | 53 176 255 345 338 246 . Legs . | . . . . . . . Wheels . | . . . . . . . Hover . | . . . . . . . Flight . | . . . . . . . Fastest Speed 50 | 50 160 160 160 160 160 50 Average Speed 205 | 134 160 160 160 238 238 476 Slowest Speed 550 | 160 160 160 160 240 500 550 Overloaded Moves . | . . . . . . . Propulsion Burnouts . | . . . . . . . Robots Hopped . | . . . . . . . Potential Cave-ins . | . . . . . . . Cave-ins Triggered . | . . . . . . . Exploration Rate (%) 34 | 4 23 45 69 78 20 3 Regions Visited 6 Branch Regions 3 Pre-discovered Areas 1 | . . . 1 . . . Known Exits Taken . | . . . . . . . Unknown Exits Taken 6 | 1 1 1 1 1 1 . Scrap Searched . | . . . . . . . Spaces Dug 9 | . 4 . . . 5 . Terrain Destroyed 237 | . 65 1 . 27 129 15 Melee . | . . . . . . . Projectile 10 | . . . . . 10 . AOE 227 | . 65 1 . 27 119 15 Terrain Rammed . | . . . . . . . Walls Destroyed . | . . . . . . . Machines Disabled . | . . . . . . . Actions | -11 -10 -10 -10 -9 -8 -7 --------- Run | Yrd Mat Min Exi Min Mat Fac Total 1797 | 77 193 269 365 388 376 129 Wait 63 | . 3 5 15 25 11 4 Move 1513 | 68 175 254 344 337 256 79 Hop . | . . . . . . . Pick Up 32 | 4 3 5 3 4 9 4 Fast Attach . | . . . . . . . Attach 28 | 4 2 . 2 . 10 10 Detach 5 | . . . 1 . 4 . Swap 5 | . . 1 . 1 3 . Drop 5 | . . . . 1 2 2 Fire 146 | 1 10 4 . 20 81 30 Melee . | . . . . . . . Ram . | . . . . . . . Kick . | . . . . . . . Crush . | . . . . . . . Escape Stasis . | . . . . . . . Rewire . | . . . . . . . Trap . | . . . . . . . Miscellaneous . | . . . . . . . Route ------- -11/Scrapyard -10/Materials -10/Mines (discovered 3 exits: [*Mat x2] / *Exi) -10/Exiles -9/Mines -8/Materials -7/Factory History --------- Turn | Location | Event 19 | -11/Scrapyard | Discovered new exit (range 15) 103 | -11/Scrapyard | Entered Materials 311 | -10/Materials | Build established: Mutant 315 | -10/Materials | Discovered new exit (range 13) 421 | -10/Materials | Entered Mines 508 | -10/Mines | Met a Derelict shopkeep closing up shop 671 | -10/Mines | Assembled infested the area 691 | -10/Mines | Discovered new exit (range 10) 763 | -10/Mines | Discovered new exit (range 12) 841 | -10/Mines | Deemed a non-threat by the Exiles lab entrance 841 | -10/Mines | Discovered new exit (range 5) 847 | -10/Mines | Entered Exiles 887 | -10/Exiles | Met 8R-AWN 913 | -10/Exiles | Met EX-HEX 971 | -10/Exiles | Met EX-BIN 990 | -10/Exiles | Aligned with FarCom system 991 | -10/Exiles | Given EX-Vault access code 1030 | -10/Exiles | Opened EX-Vault 1039 | -10/Exiles | Found Cloak of Protection 1071 | -10/Exiles | Warned to stay clear of 0b10 Research branches 1123 | -10/Exiles | Met EX-DEC 1271 | -10/Exiles | Discovered new exit (range 14) 1351 | -10/Exiles | Learned location of Zion (-6) 1418 | -10/Exiles | Left Exiles lab with Cloak of Protection 1418 | -10/Exiles | Entered Mines 1645 | -9/Mines | Assisted by bots powering up and referring to "LRC-V3" 1878 | -9/Mines | Learned Materials emergency access door positions 2079 | -9/Mines | Received a Rocket Launcher from a helpful Derelict 2276 | -9/Mines | Discovered new exit (range 9) 2296 | -9/Mines | Entered Materials 2296 | -8/Materials | Accompanied by 1 ally 2296 | -8/Materials | Evolved 4 slots: Power x1, Propulsion x2, Weapon x1 2822 | -8/Materials | Discovered new exit (range 15) 2971 | -8/Materials | Lost 5 parts (2p2n1u) 3112 | -8/Materials | Lost 4 parts (1n3w) 3119 | -8/Materials | Entered Factory 3119 | -7/Factory | Evolved 2 slots: Utility x2 3518 | -7/Factory | Lost 3 parts (3w) 3540 | -7/Factory | System corruption reached 10% 3555 | -7/Factory | Core integrity fell below 50% 3572 | -7/Factory | Core integrity fell below 20% 3576 | -7/Factory | Destroyed by B-48 Gladiator with Mace Last Messages --------------- Knocked back. B-48 Gladiator heat short circuits Lgt. Treads. U-05 Engineer lays Concrete. The unstable cave ceiling collapses. U-05 Engineer builds a Wall. K-01 Serf collects debris. U-05 Engineer lays Concrete. K-01 Serf collects debris. U-05 Engineer builds a Wall. U-05 Engineer lays Concrete. G-50 Soldier misfires. U-05 Engineer builds a Wall. B-48 Gladiator heat spikes uncontrollably. Dropped Lrg. Storage Unit. Slug penetrates Wall. U-05 Engineer builds a Wall. B-48 Gladiator heat damages core (-9). Acquired Reactive Plating. U-05 Engineer builds a Wall. Slug penetrates L-41 Fighter. Map ----- +----------------------------------------------------+ | ?????????????????????????????????????????????????? | | ?????????????????????????????????????????????????? | | ?????????????????????????????????????????????????? | | ?????????????????????????????????????????????????? | | ?????????????????????????????????????????????????? | | ?????????????????????????????????????????????????? | | ?????????????????????????????????????????????????? | | ?????????????????????????????????????????????????? | | ?????????????????????????????????????????????????? | | ?????????????????????????????????????????????????? | | ?????????????????????????????????????????????????? | | ?????????????????????????????????????????????????? | | ?????????????????????????????????????????????????? | | ?????????????????????????????????????????????????? | | ?????????????????????????????????????????????????? | | ?????????????????????????????????????????????????? | | ???????????# ????????????????????????????????????? | | ???????????# ???????????????????????????????????? | | ???????????# ?#????????????????????????????????? | | ??????????## ## ???????????????????????????????? | | ??????????# ##/###########???????????????????? | | ???????????? % ????????????????????? | | ?????????????? ^ ?????????????????????? | | ???????????????? =%| b ??????????????????????? | | ????????????????#######+#####????????????????????? | | ????????????????#=#u !@ #????????????????????? | | ????????????????### % lb #????????????????????? | | ????????????????# #u ! g#????????????????????? | | ????????????????# #u #????????????????????? | | ????????????????### #????????????????????? | | ?????????????????## #????????????????????? | | ??????????????????# #????????????????????? | | ??????????????????# h #????????????????????? | | ?????????????########+##/####????????????????????? | | ?????????????# ?# #???????????????????????? | | ?????????????# """ # #???????????????????????? | | ?????????????# """ # ####????????????????????? | | ?????????????# """ + +??????????????? | | ?????????????# # ##+#########???????????????? | | ?????????????# ! # #??????????????????????????? | | ?????????????######?# #??????????????????????????? | | ????????????????????# #??????????????????????????? | | ????????????????????# #??????????????????????????? | | ?????? ############# #??????????????????????????? | | ?????? ^ #??????????????????????????? | | ?????? !! #####??????????????????????? | | ??? " #??????????????????????? | | ???? "G! ######?????????????????? | | ??? " +??????????????? | | ??? #######????????????????? | +----------------------------------------------------+ Best States ------------- Heat Dissipation 34 Energy Generation 23 Energy Capacity 380 Matter Stores 300 Matter Capacity 500 Sight Range 16 Terrain Scan Density 10 Cloak Strength 5 Evasion (%) 50 Targeting Accuracy 15 Recoil Reduction 3 Item Schematics ----------------- None Robot Schematics ------------------ None Fabricated ------------ Nothing Repaired ---------- Nothing Alien Tech Used ----------------- None Achievements -------------- None Challenges ------------ None Game ------ Seed ArcCannonKit Manual? 0 Play Time 00:24:06 Cumulative 61.5 hours Start 2025.07.19 @ 19:56:32 End 2025.07.19 @ 21:12:33 Sessions 2 Manual Loads 0 Difficulty Rogue Special Mode None Game No. 263 Rogue 263 Adventurer 0 Explorer 0 Win Type - Total 0 Types 0/0/0/0/0/0/0/0/0/0 Lore% 40 Gallery% 31 Achievement% 25 Wizard Run 0 Options --------- Layout 2 ASCII 0 Keyboard 0 Movement Mouse Keybinds 0 Fullscreen 1 Font 24/Terminus Map View 50x44 Zoom Use 0% Tactical HUD 0 Map Filters NONE Filters NONE Steam 1 RUN: a34b795f-e784-4e9c-bc6f-80a86ef5c16c